bitfinex/quotes_ETHUSD_20220106
["timestamp","ask_amount","ask_price","bid_price","bid_amount"]
[1641498863564,4.20157527,3451.2,3451.1,1.77351338]
[1641498863757,5.07111329,3452.0,3451.9,1.25647118]
[1641498864158,5.07111329,3452.0,3451.8,0.72424]
[1641498864658,0.00511581,3451.9,3451.8,0.72424]
[1641498864858,0.00511581,3451.9,3451.8,2.49794508]
[1641498866118,0.00511581,3451.9,3451.8,0.72424]
[1641498866710,1.10563889,3451.9,3451.8,0.72424]
[1641498868311,1.10563889,3451.9,3451.8,2.5770357]
[1641498868714,0.00511581,3451.9,3451.8,2.5770357]
[1641498869758,3.93038029,3451.9,3451.8,2.5770357]
[1641498870358,1.47708999,3451.9,3451.8,2.5770357]
[1641498870961,3.93038029,3451.9,3451.8,2.5770357]
[1641498871162,3.93038029,3451.9,3451.8,0.72424]
[1641498872162,2.45840611,3451.9,3451.8,2.32907293]
[1641498873220,3.93036818,3451.9,3451.8,2.32907293]
[1641498875214,2.45840611,3451.9,3451.8,2.32907293]
[1641498876415,3.93038035,3451.9,3451.8,2.32907293]
[1641498878270,3.93038035,3451.9,3451.8,0.72424]
[1641498879771,3.93038035,3451.9,3451.8,2.56222623]
[1641498880815,3.56234457,3451.9,3451.8,2.56222623]
[1641498883020,3.56234457,3451.9,3451.8,2.86222623]
[1641498883219,3.56234457,3451.9,3451.8,2.56222623]
[1641498883622,1.10905427,3451.9,3451.8,2.86222623]
[1641498883819,0.00511581,3451.9,3451.8,2.86222623]
[1641498884868,2.45823589,3451.9,3451.8,2.86222623]
[1641498886672,2.45823589,3451.9,3451.8,19.85222623]
[1641498886872,1.32180276,3452.6,3451.8,19.85222623]
[1641498886873,1.32180276,3452.6,3451.9,3.7]
[1641498887078,1.32180276,3452.6,3452.1,0.72414]
[1641498887271,0.00341054,3452.5,3452.2,0.3]
[1641498887471,0.00341054,3452.5,3452.3,1.68561646]
[1641498887672,0.00284212,3452.4,3452.3,1.68561646]
[1641498888622,0.00284212,3452.4,3452.3,3.13392646]
[1641498893064,0.00284212,3452.4,3452.3,1.44831]
[1641498894870,0.17070642,3452.6,3452.3,1.44831]
[1641498895065,0.17070642,3452.6,3452.3,2.1725765]
[1641498895066,0.89498642,3452.6,3452.3,2.1725765]
[1641498896313,0.89498642,3452.6,3452.4,0.72426]
[1641498897014,0.17070642,3452.6,3452.5,0.3]
[1641498897418,0.17184326,3452.6,3452.4,0.72426]
[1641498900079,0.24303065,3452.6,3452.4,0.72426]
[1641498900379,0.00080014,3452.5,3452.4,0.72426]
[1641498902481,0.00080014,3452.5,3452.4,1.02426]
[1641498903124,1.10393846,3453.0,3452.4,1.02426]
[1641498903323,1.10393846,3453.0,3452.4,2.47366684]
[1641498903522,0.00170527,3452.9,3452.6,1.95947931]
[1641498903921,0.00113685,3452.8,3452.6,1.95947931]
[1641498904324,0.0022737,3453.0,3452.6,1.95947931]
[1641498904522,1.47197424,3452.7,3452.6,1.95947931]
[1641498904722,1.47197424,3452.7,3452.6,6.64737144]
[1641498905123,1.47197424,3452.7,3452.6,1.95947931]
[1641498905724,1.47197424,3452.7,3452.6,23.50924184]
[1641498906124,2.19381589,3453.0,3452.6,23.50924184]
[1641498906525,2.19665801,3453.1,3452.9,1.81796682]
[1641498906765,2.19665801,3453.1,3452.9,3.99018482]
[1641498906969,0.0022737,3453.0,3452.9,4.29018482]
[1641498907664,0.0022737,3453.0,3452.9,3.56611212]
[1641498911020,0.0022737,3453.0,3452.9,1.7481453]
[1641498911419,0.0022737,3453.0,3452.9,1.4481453]
[1641498912219,2.13272596,3453.0,3452.9,1.4481453]
[1641498914266,4.58539311,3453.0,3452.9,1.4481453]
[1641498914469,2.45494085,3453.0,3452.9,1.4481453]
[1641498914864,2.45494085,3453.0,3452.9,1.7481453]
[1641498915265,4.66241089,3453.0,3452.9,1.7481453]
[1641498916065,2.20974374,3453.0,3452.9,1.7481453]
[1641498916767,2.45494085,3453.0,3452.9,1.7481453]
[1641498917166,4.71652003,3453.0,3452.9,1.7481453]
[1641498917368,6.18229521,3453.0,3452.9,1.7481453]
[1641498920923,6.93833642,3453.0,3452.9,1.7481453]
[1641498921125,5.47256124,3453.0,3452.9,1.7481453]
[1641498921801,3.21098206,3453.0,3452.9,1.7481453]
[1641498921992,4.67669141,3453.0,3452.9,1.4481453]
[1641498922794,3.21098206,3453.0,3452.9,1.7481453]
[1641498922991,3.21098206,3453.0,3452.9,3.84962716]
[1641498923791,3.21098206,3453.0,3452.9,1.7481453]
[1641498925830,3.21098206,3453.0,3452.9,1.4481453]
[1641498926026,3.21098206,3453.0,3452.9,1.7481453]
[1641498929030,4.31016184,3453.0,3452.9,1.7481453]
[1641498929474,3.21098206,3453.0,3452.9,1.7481453]
[1641498931673,3.21098206,3453.0,3452.9,3.63679951]
[1641498931873,3.21098206,3453.0,3452.9,3.33679951]
[1641498932075,3.21098206,3453.0,3452.9,1.4481453]
[1641498933823,3.21098206,3453.0,3452.9,1.7481453]
[1641498936872,3.20870836,3453.0,3452.9,1.7481453]
[1641498942129,3.20870836,3453.0,3452.9,1.66792195]
[1641498942731,3.20870836,3453.0,3452.9,1.4481453]
[1641498942932,4.67747785,3453.0,3452.9,1.4481453]
[1641498944371,3.20870836,3453.0,3452.9,1.4481453]
[1641498945774,3.05870836,3453.0,3452.9,1.7481453]
[1641498947931,1.46876949,3453.2,3453.1,16.99]
[1641498948127,0.86984949,3453.2,3453.1,21.66378398]
[1641498948330,3.59895563,3453.7,3453.1,16.99]
[1641498948527,3.59895563,3453.7,3453.1,18.73773]
[1641498948727,0.00397897,3453.3,3453.2,16.99]
[1641498948931,0.00397897,3453.3,3453.2,19.46741294]
[1641498949527,0.0045144,3454.1,3453.2,22.23286254]
[1641498949727,0.0045144,3454.1,3453.2,21.50899254]
[1641498949926,0.00341054,3453.9,3453.2,21.50899254]
[1641498950128,0.00341054,3453.9,3453.3,4.52849045]
[1641498950327,0.00284211,3453.8,3453.5,1.73727]
[1641498950534,0.00284211,3453.8,3453.5,1.01339]
[1641498950735,0.00227369,3453.7,3452.6,3.8642856]
[1641498951129,0.00170527,3453.6,3452.7,0.00341054]
[1641498951329,2.09104293,3453.5,3452.9,1.81788079]
[1641498951538,2.81620977,3453.5,3452.9,1.81788079]
[1641498951785,2.81620977,3453.5,3453.0,0.00170527]
[1641498953387,3.54026797,3453.5,3453.0,0.00170527]
[1641498953588,0.72407,3453.3,3452.6,0.00397897]
[1641498953787,2.09217977,3453.5,3452.6,0.00397897]
[1641498954190,2.13408063,3452.8,3452.6,0.00397897]
[1641498954587,0.00113684,3453.5,3452.6,0.00397897]
[1641498955622,2.20472565,3452.8,3452.4,0.00511581]
[1641498956422,2.20472565,3452.8,3451.9,0.00795793]
[1641498956623,2.20472565,3452.8,3451.7,1.15711498]
[1641498956829,2.2741868,3451.8,3451.7,1.15711498]
[1641498957224,2.2741868,3451.8,3451.7,4.30711498]
[1641498957726,2.2741868,3451.8,3451.7,3.15]
[1641498960280,2.1931479,3452.6,3451.7,6.3]
[1641498960684,1.4688979,3452.6,3451.8,0.00852635]
[1641498961480,2.1631175,3451.9,3451.8,0.00852635]
[1641498961677,2.6814979,3452.7,3451.8,0.00852635]
[1641498962277,0.724223,3452.6,3451.8,0.00852635]
[1641498962678,1.4688979,3452.5,3451.8,0.00852635]
[1641498962930,1.65036325,3452.4,3451.8,0.00852635]
[1641498963329,2.01594574,3451.8,3451.7,0.49907043]
[1641498964931,2.01594574,3451.8,3451.7,0.00909478]
[1641498965130,2.01594574,3451.8,3451.7,4.05909478]
[1641498965329,1.9583949,3452.5,3451.7,21.04]
[1641498965531,1.9583949,3452.5,3451.7,21.04909478]
[1641498965731,1.10366519,3452.2,3451.7,21.04909478]
[1641498965931,1.10366519,3452.3,3451.8,4.92268243]
[1641498966132,1.10366519,3452.3,3451.8,0.48997565]
[1641498966332,1.10366519,3452.3,3451.9,0.00795793]
[1641498966775,2.31626519,3452.7,3451.9,0.00795793]
[1641498967374,1.85572038,3452.2,3451.9,0.00795793]
[1641498967676,1.85572038,3452.2,3451.9,4.37514149]
[1641498967874,2.31626519,3452.7,3451.9,4.37514149]
[1641498968076,2.31626519,3452.7,3452.0,0.00738951]
[1641498968475,2.45254251,3452.6,3451.9,0.00795793]
[1641498968875,4.22071879,3452.6,3451.9,0.00795793]
[1641498969477,1.76817628,3452.6,3451.9,0.49627852]
[1641498969682,2.45254251,3452.7,3452.0,21.45764284]
[1641498969878,2.45254251,3452.7,3452.0,22.18914235]
[1641498970077,2.45254251,3452.7,3452.1,0.00682108]
[1641498970730,1.84708339,3452.4,3452.1,0.00682108]
[1641498971330,2.45254251,3452.8,3452.1,0.00682108]
[1641498971531,2.45254251,3452.3,3452.1,0.00682108]
[1641498972236,2.45254251,3452.8,3452.1,0.00682108]
[1641498972435,2.08681372,3452.5,3452.1,0.00682108]
[1641498973136,2.45254251,3452.4,3452.1,0.00682108]
[1641498974484,2.45254251,3452.4,3452.1,4.37682657]
[1641498974686,2.45254251,3452.4,3452.1,0.00682108]
[1641498974887,2.45254251,3452.4,3452.2,0.00625266]
[1641498975086,2.45254251,3452.4,3452.0,0.00738951]
[1641498976782,2.45254251,3452.4,3451.9,0.00795793]
[1641498976982,2.45254251,3452.4,3451.9,4.37600477]
[1641498977183,2.45254251,3452.4,3451.9,5.10015077]
[1641498977387,2.45254251,3452.4,3452.0,0.00738951]
[1641498981128,2.45254251,3452.4,3452.1,0.7240837]
[1641498981329,2.45254251,3452.4,3452.2,21.46392981]
[1641498981528,2.45254251,3452.4,3452.3,4.34608791]
[1641498981775,2.45254251,3452.4,3452.3,4.35177215]
[1641498982590,2.45254251,3452.7,3452.3,4.35177215]
[1641498982978,2.45254251,3452.7,3452.4,0.00511581]
[1641498983478,1.76254474,3452.8,3452.4,0.00511581]
[1641498984484,2.45254251,3452.7,3452.4,0.00511581]
[1641498984880,2.45254251,3452.7,3452.0,0.00738951]
[1641498985087,2.45254251,3452.7,3451.6,4.56568574]
[1641498985088,2.45254251,3452.7,3451.9,0.00795793]
[1641498985529,1.86811902,3451.9,3451.7,0.00909478]
[1641498987430,2.897165,3452.3,3451.7,0.00909478]
[1641498987636,1.448575,3452.3,3451.5,0.01023163]
[1641498988239,1.4486102,3452.2,3451.5,0.48627201]
[1641498988632,1.4486102,3452.2,3451.6,0.0096632]
[1641498989274,2.55225519,3452.3,3451.6,0.0096632]
[1641498989275,1.93322376,3452.0,3451.6,0.0096632]
[1641498989476,1.93322376,3452.0,3451.5,0.01023163]
[1641498990075,1.88322376,3452.0,3451.5,0.01023163]
[1641498990474,1.4485423,3452.4,3451.5,0.01023163]
[1641498990675,1.4485423,3452.4,3451.5,17.00023163]
[1641498990676,0.7242623,3452.4,3451.5,17.00023163]
[1641498990873,1.82791519,3452.5,3451.5,17.00023163]
[1641498991074,1.82791519,3452.5,3451.6,0.0096632]
[1641498991475,1.10366519,3452.5,3451.6,0.0096632]
[1641498991676,1.10366519,3452.6,3451.6,0.7338632]
[1641498991975,1.10366519,3452.6,3452.0,2.17653248]
[1641498991976,3.07495573,3452.6,3452.0,2.17653248]
[1641498992175,1.97129054,3452.6,3452.0,2.17653248]
[1641498992374,1.97129054,3452.6,3452.1,0.00682108]
[1641498993335,1.97129054,3452.6,3451.5,0.01023163]
[1641498993734,0.7242723,3452.3,3451.3,0.01136847]
[1641498993939,0.7242723,3452.3,3451.8,2.22447307]
[1641498994433,1.10366519,3452.5,3451.9,0.00795793]
[1641498994632,1.82792519,3452.5,3451.9,0.00795793]
[1641498995233,0.72426,3452.5,3451.9,0.00795793]
[1641498995436,2.55946175,3452.5,3451.9,0.00795793]
[1641498995633,3.28370125,3452.5,3451.9,0.00795793]
[1641498995833,4.00795125,3452.5,3451.9,0.00795793]
[1641498996533,1.4485363,3452.4,3451.9,0.00795793]
[1641498996984,1.4485363,3452.4,3451.6,0.0096632]
[1641498997181,1.4485363,3452.4,3451.5,0.01023163]
[1641498997581,2.55220149,3452.4,3451.8,1.59934061]
[1641498997983,1.82793149,3452.4,3451.9,0.00795793]
[1641498998181,1.10366519,3452.4,3451.9,0.00795793]
[1641498998677,2.55945175,3452.5,3451.9,0.00795793]
[1641498999177,3.28371175,3452.5,3451.9,0.00795793]
[1641498999778,4.38737694,3452.5,3451.9,0.00795793]
[1641499000178,0.72428,3452.3,3451.9,0.00795793]
[1641499000429,0.72428,3452.3,3451.6,0.0096632]
[1641499000629,1.82794519,3452.4,3451.6,0.0096632]
[1641499000630,1.10366519,3452.4,3451.6,4.60173034]
[1641499000825,1.10366519,3452.4,3451.6,0.0096632]
[1641499001025,1.10366519,3452.4,3451.7,0.00909478]
[1641499001228,1.10366519,3452.6,3451.7,1.44841]
[1641499001624,1.10366519,3452.6,3451.7,0.7242]
[1641499001825,1.10366519,3452.6,3452.2,2.140053]
[1641499002227,1.10366519,3452.6,3452.3,0.00568424]
[1641499003330,1.10366519,3452.6,3451.9,0.00795793]
[1641499003731,4.19277491,3452.7,3451.9,0.00795793]
[1641499004177,2.58402847,3452.7,3451.9,0.00795793]
[1641499004778,1.82788519,3452.7,3451.9,0.00795793]
[1641499005884,2.45256167,3452.6,3451.9,0.00795793]
[1641499006079,2.45256167,3452.6,3452.5,1.98743963]
[1641499006480,2.45256167,3452.6,3452.5,1.99198702]
[1641499006883,2.45256167,3452.6,3452.5,0.00454739]
[1641499007280,2.45256167,3452.6,3451.9,0.00795793]
[1641499007480,3.55622686,3452.6,3451.9,0.00795793]
[1641499008329,2.45256167,3452.5,3451.9,0.00795793]
[1641499008730,2.45256167,3452.5,3452.3,2.2409024]
[1641499009231,3.20869199,3452.5,3452.4,0.00511581]
[1641499012682,3.20869199,3452.5,3452.4,3.30511581]
[1641499012879,3.20869199,3452.5,3452.4,0.00511581]
[1641499014680,3.20869199,3452.5,3452.4,2.80511581]
[1641499015727,2.45256167,3452.5,3452.4,2.80511581]
[1641499015929,2.45256167,3452.5,3452.4,0.00511581]
[1641499016928,1.38881108,3452.9,3452.4,0.00511581]
[1641499016929,2.45256167,3452.8,3452.4,0.00511581]
[1641499017729,2.45256167,3452.5,3452.4,0.00511581]
[1641499018730,3.55622686,3452.8,3452.4,0.00511581]
[1641499019592,2.45256167,3452.7,3452.4,0.00511581]
[1641499020195,3.55622686,3452.7,3452.4,0.00511581]
[1641499020396,1.10366519,3452.7,3452.4,0.00511581]
[1641499020997,0.75611095,3452.6,3452.4,0.00511581]
[1641499021196,4.31233781,3452.6,3452.4,0.00511581]
[1641499021798,2.45256167,3452.5,3452.4,0.00511581]
[1641499024337,2.45256167,3452.5,3452.4,4.65921818]
[1641499024534,2.45256167,3452.5,3452.4,8.20921818]
[1641499024734,2.45256167,3452.5,3452.4,3.55511581]
[1641499025339,2.45256167,3452.5,3452.4,24.95029649]
[1641499025537,2.45256167,3452.5,3452.4,26.25029649]
[1641499025735,2.45256167,3452.5,3452.4,22.03991581]
[1641499026982,2.45256167,3452.5,3452.4,21.03991581]
[1641499027180,2.45256167,3452.9,3452.4,22.48662576]
[1641499027382,2.45256167,3452.9,3452.6,0.72394]
[1641499027583,2.45256167,3452.9,3452.8,16.99]
[1641499027980,2.45256167,3452.9,3452.8,16.99284212]
[1641499028888,1.10366519,3453.2,3452.9,0.7239399]
[1641499029082,1.10366519,3453.2,3453.0,1.81346463]
[1641499029286,1.10366519,3453.2,3453.0,1.8151699]
[1641499029481,1.10366519,3453.2,3453.1,0.00113685]
[1641499029885,1.46593233,3453.4,3453.1,0.00113685]
[1641499030627,2.45256167,3453.2,3453.1,0.00113685]
[1641499031426,1.46593233,3453.4,3452.7,0.00341054]
[1641499032027,1.64810123,3453.1,3452.7,0.00341054]
[1641499032529,1.64810123,3453.1,3452.7,0.45111927]
[1641499032929,1.64810123,3453.1,3452.8,0.00284212]
[1641499033329,2.45256167,3453.0,3452.8,0.00284212]
[1641499034582,2.45256167,3453.0,3452.5,0.00454739]
[1641499034982,4.60939987,3452.9,3452.5,0.45225612]
[1641499035182,5.33357987,3452.9,3452.5,0.45225612]
[1641499035479,5.33357987,3452.9,3452.6,0.00397897]
[1641499036080,7.5237422,3452.9,3452.6,0.00397897]
[1641499036282,0.72422,3452.8,3452.6,0.00397897]
[1641499036478,0.72422,3452.8,3452.0,0.00738951]
[1641499037180,1.46593233,3452.7,3452.0,0.00738951]
[1641499037581,5.97142309,3452.7,3452.0,0.00738951]
[1641499038029,9.14821476,3452.7,3452.0,0.00738951]
[1641499038329,4.642724,3452.7,3452.0,0.00738951]
[1641499038930,3.918494,3452.6,3452.0,0.00738951]
[1641499039329,1.61918716,3452.3,3451.9,0.00795793]
[1641499040934,2.45256167,3452.2,3451.9,0.00795793]
[1641499041788,2.45256167,3452.6,3451.9,0.00795793]
[1641499041985,1.77004393,3452.3,3451.9,0.00795793]
[1641499042388,2.45256167,3452.1,3451.9,0.00795793]
[1641499043284,2.45256167,3452.2,3451.9,0.00795793]
[1641499043685,2.40256167,3452.2,3451.9,0.00795793]
[1641499043886,3.35486233,3452.7,3451.9,0.45566666]
[1641499044286,1.92647211,3452.5,3452.0,0.00738951]
[1641499045530,3.02857404,3452.5,3452.0,0.00738951]
[1641499045932,3.02857404,3452.5,3451.8,18.87724403]
[1641499046131,3.02857404,3452.5,3451.8,1.88724403]
[1641499046331,1.92647211,3452.5,3451.9,0.00795793]
[1641499046933,1.92647211,3452.5,3451.9,0.45566666]
[1641499047337,1.92647211,3452.5,3452.0,0.00738951]
[1641499048746,0.75611574,3452.6,3452.0,0.00738951]
[1641499049177,1.85821767,3452.6,3452.0,0.00738951]
[1641499049381,1.85821767,3452.6,3451.0,2.86578515]
[1641499049382,5.8,3452.4,3451.0,2.86578515]
[1641499049583,0.0124831,3451.5,3451.0,2.86578515]
[1641499049783,0.0124831,3451.5,3451.3,0.00397896]
[1641499049982,0.72452,3451.4,3451.3,0.00397896]
[1641499050378,2.68488152,3451.4,3451.3,0.00397896]
[1641499050578,3.40940102,3451.4,3451.0,0.00568423]
[1641499050780,2.68488102,3451.4,3451.0,0.00568423]
[1641499050982,0.7245195,3451.4,3451.0,0.00568423]
[1641499051186,0.72447,3451.4,3451.0,0.00568423]
[1641499051579,0.72447,3451.4,3450.8,1.28165645]
[1641499051983,2.24735531,3451.3,3450.9,0.00625266]
[1641499052180,0.72447,3451.4,3450.9,0.00625266]
[1641499052380,2.1119764,3451.6,3450.9,0.00625266]
[1641499052586,1.3875464,3451.6,3450.9,0.00625266]
[1641499053258,0.28514589,3451.6,3451.4,2.23974791]
[1641499053454,0.28514589,3451.6,3450.9,0.00625266]
[1641499053657,0.28514589,3451.6,3451.5,0.00284212]
[1641499053853,0.28514589,3451.6,3450.9,0.00625266]
[1641499054953,0.28514589,3451.6,3451.0,1.65233185]
[1641499055354,1.00956589,3451.6,3451.1,0.00511581]
[1641499055755,2.1119664,3451.6,3451.1,0.00511581]
[1641499056555,2.1119664,3451.6,3450.6,0.00795793]
[1641499057381,2.06741368,3451.2,3450.7,1.669621]
[1641499057582,1.00956589,3451.6,3450.7,1.669621]
[1641499057784,1.00956589,3451.6,3450.8,0.00682108]
[1641499058581,2.1119664,3451.6,3450.8,0.00682108]
[1641499060081,1.00956589,3451.6,3450.8,0.00682108]
[1641499060540,0.28514589,3451.6,3450.8,0.00682108]
[1641499063438,1.3875464,3451.6,3450.8,0.00682108]
[1641499064292,2.45248859,3451.5,3450.8,0.00682108]
[1641499067095,3.90138859,3451.5,3450.8,0.00682108]
[1641499067296,2.45248859,3451.5,3450.8,0.00682108]
[1641499068141,0.72453,3451.1,3450.8,0.00682108]
[1641499069139,2.45248859,3451.0,3450.8,0.00682108]
[1641499069737,1.44897,3451.4,3450.8,0.00682108]
[1641499070136,0.72449,3451.4,3450.8,0.00682108]
[1641499070745,2.45248859,3451.3,3450.8,0.00682108]
[1641499070938,0.72452,3451.1,3450.8,0.00682108]
[1641499071239,2.45248859,3451.3,3450.8,0.00682108]
[1641499071240,3.17699859,3451.3,3450.8,0.00682108]
[1641499071992,0.72451,3451.3,3450.8,0.00682108]
[1641499072487,0.28514589,3451.6,3450.8,0.00682108]
[1641499072685,0.418,3452.0,3451.1,1.01319542]
[1641499072985,1.44886,3451.9,3451.2,0.00454739]
[1641499073387,0.72441,3451.7,3451.2,0.00454739]
[1641499073585,1.44884,3451.7,3451.2,0.00454739]
[1641499073786,0.418,3452.0,3451.6,1.61555777]
[1641499074188,0.418,3452.0,3451.7,0.00170527]
[1641499075531,0.72435,3451.9,3451.7,0.00170527]
[1641499075739,1.44873,3451.9,3451.7,0.00170527]
[1641499076842,3.85268739,3452.3,3451.7,0.00170527]
[1641499076843,3.7815,3452.3,3451.7,5.94908801]
[1641499077235,0.00113685,3452.2,3451.8,0.00113684]
[1641499077635,0.0022737,3452.4,3451.8,0.00113684]
[1641499078035,1.1362,3452.6,3452.3,1.96979539]
[1641499078236,0.72422,3452.6,3452.3,1.96979539]
[1641499078435,0.00284212,3452.5,3452.3,1.96979539]
[1641499078837,0.0022737,3452.4,3451.8,0.00113684]
[1641499079184,0.00170527,3452.3,3451.8,0.00113684]
[1641499079383,0.07289266,3452.3,3451.8,0.00113684]
[1641499079583,0.00113685,3452.2,3451.8,0.00113684]
[1641499079885,0.79663424,3452.2,3451.9,1.93841703]
[1641499080085,0.07118739,3452.1,3451.9,1.93841703]
[1641499081294,2.45225311,3452.0,3451.9,1.93841703]
[1641499081685,3.17662311,3452.0,3451.9,1.93841703]
[1641499083034,3.0032209,3452.0,3451.9,1.93841703]
[1641499083434,3.0032209,3452.0,3451.1,0.00511581]
[1641499084437,0.72437,3452.0,3451.1,0.00511581]
[1641499084836,0.72437,3452.0,3451.6,1.69201569]
[1641499085238,0.72437,3452.0,3451.7,0.00170527]
[1641499086442,0.72441,3451.8,3451.7,0.00170527]
[1641499088973,0.72445,3451.6,3451.3,2.23132398]
[1641499089368,0.72445,3451.6,3451.4,0.00341054]
[1641499092233,1.44887,3451.8,3451.4,0.00341054]
[1641499092830,0.72445,3451.8,3451.4,0.00341054]
[1641499093228,1.82685051,3451.8,3451.4,0.00341054]
[1641499093630,0.72443,3451.7,3451.4,0.00341054]
[1641499094466,1.10240051,3451.9,3451.4,0.00341054]
[1641499095467,1.10240051,3452.0,3451.4,0.00341054]
[1641499095666,1.82677051,3452.0,3451.4,0.00341054]
[1641499097068,0.72441,3451.9,3451.4,0.00341054]
[1641499097268,1.82681051,3451.9,3451.4,0.00341054]
[1641499097469,0.72442,3451.7,3451.4,0.00341054]
[1641499097920,1.82682051,3451.7,3451.4,0.00341054]
[1641499099825,0.75628572,3451.6,3451.4,0.00341054]
[1641499102375,0.75628572,3451.6,3451.2,0.00454739]
[1641499102973,0.75628572,3451.6,3451.2,1.67748639]
[1641499103172,0.70628572,3451.6,3451.2,1.67748639]
[1641499103773,2.45240132,3451.5,3451.2,1.67748639]
[1641499104173,2.45240132,3451.5,3451.2,2.18456639]
[1641499105616,2.45240132,3451.5,3451.2,1.67748639]
[1641499107719,2.45240132,3451.5,3451.2,2.18456639]
[1641499108819,1.46593233,3451.4,3451.2,2.18456639]
[1641499109017,1.46593233,3451.4,3451.2,2.48456639]
[1641499109875,2.45240132,3451.5,3451.2,2.18456639]
[1641499111677,2.45240132,3451.5,3451.2,1.67748639]
[1641499112281,2.45240132,3451.5,3451.2,0.00454739]
[1641499112481,3.17687132,3451.5,3451.2,0.00454739]
[1641499112685,3.17687132,3451.5,3451.1,0.00511581]
[1641499113326,4.5,3451.3,3449.9,3.88514651]
[1641499113526,0.72477,3450.6,3449.9,4.651e-05]
[1641499113728,0.72477,3450.6,3449.2,1.01463]
[1641499113729,0.7248086,3450.3,3450.1,0.18392698]
[1641499114128,0.7248086,3450.3,3450.2,0.00511581]
[1641499114332,2.77808604,3450.3,3450.2,0.00511581]
[1641499114729,4.22765604,3450.3,3450.2,0.00511581]
[1641499115130,3.50284744,3450.3,3450.2,0.00511581]
[1641499115334,2.77805744,3450.3,3450.2,0.00511581]
[1641499115631,1.10349761,3450.4,3450.2,0.00511581]
[1641499116131,0.72469,3450.5,3450.2,0.00511581]
[1641499116531,1.72980143,3450.3,3450.2,0.00511581]
[1641499116767,2.45454143,3450.3,3450.2,0.00511581]
[1641499117975,0.72474,3450.3,3450.2,0.00511581]
[1641499118172,1.46593233,3450.5,3450.2,0.00511581]
[1641499118173,1.46593233,3450.4,3450.2,0.00511581]
[1641499118973,1.10392828,3450.3,3450.2,0.00511581]
[1641499119173,1.10392828,3450.3,3450.2,2.04096575]
[1641499120626,2.92773804,3450.4,3450.2,2.04096575]
[1641499121020,2.92773804,3450.4,3450.3,0.00454739]
[1641499121623,0.72471,3450.4,3450.3,0.00454739]
[1641499122225,2.92773804,3450.4,3450.3,0.00454739]
[1641499122924,4.57601197,3450.4,3450.3,0.00454739]
[1641499123126,2.92773804,3450.4,3450.3,0.00454739]
[1641499123924,0.72471,3450.4,3450.3,0.00454739]
[1641499124577,2.71603024,3450.4,3450.3,0.00454739]
[1641499124774,4.92416185,3450.4,3450.3,0.00454739]
[1641499125677,2.71603024,3450.4,3450.3,0.00454739]
[1641499125873,2.71603024,3450.4,3449.6,0.00852635]
[1641499126075,0.72478,3450.3,3449.8,1.68196966]
[1641499126275,0.72476,3450.2,3449.8,1.68196966]
[1641499126475,0.72476,3450.2,3449.9,0.00682108]
[1641499127275,1.47208621,3450.1,3449.9,0.00682108]
[1641499129326,1.10404448,3450.0,3449.9,0.00682108]
[1641499131522,3.55747872,3450.0,3449.9,0.00682108]
[1641499132271,2.45343424,3450.0,3449.9,0.00682108]
[1641499133272,3.55747872,3450.0,3449.9,0.00682108]
[1641499134171,2.45343424,3450.0,3449.9,0.00682108]
[1641499136130,2.45343424,3450.0,3449.9,3.95682108]
[1641499136331,2.45343424,3450.0,3449.9,9.538512]
[1641499136526,3.55747872,3450.0,3449.9,26.83421993]
[1641499137329,1.10404448,3450.5,3449.9,27.55875993]
[1641499137528,1.10404448,3450.5,3450.1,0.50716]
[1641499137929,1.10404448,3450.5,3450.2,0.00511581]
[1641499138533,1.10404448,3450.5,3450.1,0.00568423]
[1641499139172,1.10404448,3450.6,3450.1,0.00568423]
[1641499139373,1.10404448,3450.6,3450.2,0.5072]
[1641499139771,1.10404448,3450.6,3450.3,0.00454739]
[1641499140372,1.10404448,3450.6,3450.5,1.04719245]
[1641499140574,1.10404448,3450.6,3450.5,5.57490312]
[1641499140774,1.47208621,3450.8,3450.5,18.63861366]
[1641499140977,2.20812405,3451.1,3450.9,28.27125281]
[1641499141173,3.68125936,3451.8,3451.2,18.3698314]
[1641499141383,3.68125936,3451.8,3451.4,11.2]
[1641499141575,3.68125936,3451.8,3451.5,16.99]
[1641499141974,3.68125936,3452.6,3452.5,1.75048807]
[1641499142174,3.68125936,3452.6,3451.9,1.25799635]
[1641499142473,3.68125936,3452.6,3451.9,18.54799635]
[1641499142474,0.00625266,3452.2,3451.9,18.54799635]
[1641499142925,0.00568424,3452.1,3451.9,18.54799635]
[1641499143125,0.00568424,3452.1,3452.0,4.3050065]
[1641499143327,3.68125936,3452.6,3452.0,4.8119165]
[1641499143523,3.68125936,3452.6,3452.5,1.69889584]
[1641499143927,10.55233964,3453.1,3452.5,1.69889584]
[1641499144127,1.67094712,3453.1,3452.5,1.69889584]
[1641499144325,0.01080005,3453.0,3452.5,1.69889584]
[1641499144726,0.01023162,3452.9,3452.5,1.69889584]
[1641499145127,0.0096632,3452.8,3452.6,5.32407652]
[1641499145327,0.0096632,3452.8,3452.6,0.62]
[1641499145526,0.00909478,3452.7,3452.6,0.62]
[1641499146027,0.00909478,3452.7,3452.6,7.78980685]
[1641499146227,0.00909478,3452.7,3452.6,4.88980685]
[1641499146673,0.00909478,3452.7,3452.6,0.62]
[1641499146876,0.00909478,3452.7,3452.6,4.93418327]
[1641499147173,0.00909478,3452.7,3452.6,4.94050032]
[1641499148676,0.00909478,3452.7,3452.6,6.24050032]
[1641499149881,0.00909478,3452.7,3452.6,23.23050032]
[1641499150524,0.00909478,3452.7,3452.6,1.92631705]
[1641499150724,0.00909478,3452.7,3452.6,1.30631705]
[1641499151124,0.00909478,3452.7,3452.6,5.63868347]
[1641499151326,0.00909478,3452.7,3452.6,0.00631705]
[1641499152127,1.47740567,3452.7,3452.6,0.00631705]
[1641499152928,0.00909478,3452.7,3452.6,0.00631705]
[1641499153130,2.21156375,3452.7,3452.6,0.00631705]
[1641499153831,0.00909478,3452.7,3452.6,0.00631705]
[1641499154881,2.21156375,3452.7,3452.6,0.00631705]
[1641499155179,2.28275114,3452.7,3452.6,0.00631705]
[1641499155377,2.39555114,3452.7,3452.6,0.00631705]
[1641499155577,0.08028217,3452.7,3452.6,0.00631705]
[1641499155777,0.19388217,3452.7,3452.6,0.00631705]
[1641499156076,0.18988217,3452.7,3452.6,0.00631705]
[1641499156278,0.08028217,3452.7,3452.6,0.00631705]
[1641499156480,0.49828217,3452.7,3452.6,0.00631705]
[1641499156883,0.00564612,3452.4,3452.1,0.00458322]
[1641499157079,0.418,3452.5,3452.1,0.00458322]
[1641499157280,0.00682108,3452.3,3452.1,0.00458322]
[1641499157479,0.72436,3452.4,3452.1,0.00458322]
[1641499157480,0.73174951,3452.4,3452.1,0.00458322]
[1641499157679,0.00625266,3452.2,3452.1,0.00458322]
[1641499157923,0.00682108,3452.3,3452.1,0.00458322]
[1641499158126,0.00625266,3452.2,3452.1,0.00458322]
[1641499158327,2.21335418,3452.2,3452.1,0.00458322]
[1641499158925,2.63135418,3452.2,3452.1,0.00458322]
[1641499159126,2.63229952,3452.2,3452.1,0.00458322]